[Event "Titled Tuesday Blitz May 24 Early 2022"]
[White "Vakhlamov, Igor L."]
[Black "Castaneda, Jhon David"]
[WhiteFideId "24126748"]
[BlackFideId "4405048"]
[WhiteElo "2401"]
[BlackElo "2152"]
[Result "1-0"]
[Round "09"]
[TimeControl "180+1"]
[Date "2022.05.25"]
[WhiteClock "0:00:11"]
[BlackClock "0:00:11"]

1. e4 {[%clk 0:03:00]}  c5 {[%clk 0:02:59]} 2. Nf3 {[%clk 0:03:01]}  Nc6 {[%clk 0:02:59]} 3. Nc3 {[%clk 0:03:01]}  d6 {[%clk 0:02:58]} 4. Bb5 {[%clk 0:03:01]}  Nf6 {[%clk 0:02:56]} 5. e5 {[%clk 0:02:58]}  dxe5 {[%clk 0:02:52]} 6. Nxe5 {[%clk 0:02:58]}  Bd7 {[%clk 0:02:52]} 7. Bxc6 {[%clk 0:02:47]}  bxc6 {[%clk 0:02:43]} 8. O-O {[%clk 0:02:42]}  e6 {[%clk 0:02:36]} 9. d3 {[%clk 0:02:41]}  Bd6 {[%clk 0:02:35]} 10. Nxd7 {[%clk 0:02:41]}  Nxd7 {[%clk 0:02:34]} 11. Re1 {[%clk 0:02:41]}  Qh4 {[%clk 0:02:32]} 12. g3 {[%clk 0:02:39]}  Qh3 {[%clk 0:02:32]} 13. Ne4 {[%clk 0:02:38]}  Be7 {[%clk 0:02:32]} 14. Bf4 {[%clk 0:02:22]}  h6 {[%clk 0:02:29]} 15. Nd6+ {[%clk 0:02:18]}  Kf8 {[%clk 0:02:29]} 16. Qf3 {[%clk 0:02:08]}  Kg8 {[%clk 0:02:02]} 17. Qxc6 {[%clk 0:02:05]}  Rd8 {[%clk 0:01:49]} 18. Nb7 {[%clk 0:01:48]}  Nb8 {[%clk 0:01:47]} 19. Qg2 {[%clk 0:01:13]}  Qxg2+ {[%clk 0:01:36]} 20. Kxg2 {[%clk 0:01:14]}  Nc6 {[%clk 0:01:35]} 21. Nxd8 {[%clk 0:01:14]}  Bxd8 {[%clk 0:01:18]} 22. c3 {[%clk 0:01:11]}  Kf8 {[%clk 0:01:15]} 23. Bd6+ {[%clk 0:01:10]}  Be7 {[%clk 0:01:13]} 24. Bxe7+ {[%clk 0:01:10]}  Kxe7 {[%clk 0:01:14]} 25. Rad1 {[%clk 0:01:10]}  Kd6 {[%clk 0:01:14]} 26. Re4 {[%clk 0:01:10]}  f5 {[%clk 0:01:09]} 27. Ra4 {[%clk 0:01:09]}  a5 {[%clk 0:01:09]} 28. d4 {[%clk 0:01:02]}  cxd4 {[%clk 0:01:09]} 29. cxd4 {[%clk 0:01:03]}  Rb8 {[%clk 0:01:08]} 30. Rd2 {[%clk 0:01:03]}  Rb5 {[%clk 0:01:06]} 31. Rc4 {[%clk 0:01:00]}  Rd5 {[%clk 0:01:03]} 32. b3 {[%clk 0:01:00]}  Nb4 {[%clk 0:01:03]} 33. a3 {[%clk 0:00:58]}  Nc6 {[%clk 0:01:01]} 34. f4 {[%clk 0:00:56]}  g5 {[%clk 0:01:00]} 35. Kf3 {[%clk 0:00:55]}  g4+ {[%clk 0:01:00]} 36. Ke3 {[%clk 0:00:55]}  Rb5 {[%clk 0:01:00]} 37. Rc3 {[%clk 0:00:52]}  Ne7 {[%clk 0:01:01]} 38. Rcd3 {[%clk 0:00:44]}  Nd5+ {[%clk 0:01:00]} 39. Ke2 {[%clk 0:00:42]}  Nf6 {[%clk 0:01:01]} 40. Rc2 {[%clk 0:00:42]}  Ne4 {[%clk 0:01:00]} 41. Ke3 {[%clk 0:00:37]}  Nf6 {[%clk 0:00:55]} 42. Rc5 {[%clk 0:00:32]}  Nd5+ {[%clk 0:00:52]} 43. Ke2 {[%clk 0:00:30]}  Rxc5 {[%clk 0:00:39]} 44. dxc5+ {[%clk 0:00:31]}  Kxc5 {[%clk 0:00:39]} 45. Rd2 {[%clk 0:00:30]}  Nc3+ {[%clk 0:00:37]} 46. Kd3 {[%clk 0:00:30]}  Nb5 {[%clk 0:00:32]} 47. Rc2+ {[%clk 0:00:30]}  Kd6 {[%clk 0:00:30]} 48. a4 {[%clk 0:00:27]}  Nc7 {[%clk 0:00:29]} 49. Rxc7 {[%clk 0:00:22]}  Kxc7 {[%clk 0:00:30]} 50. Kc4 {[%clk 0:00:22]}  Kc6 {[%clk 0:00:29]} 51. b4 {[%clk 0:00:22]}  axb4 {[%clk 0:00:29]} 52. Kxb4 {[%clk 0:00:23]}  h5 {[%clk 0:00:25]} 53. Kc4 {[%clk 0:00:22]}  e5 {[%clk 0:00:18]} 54. fxe5 {[%clk 0:00:22]}  h4 {[%clk 0:00:18]} 55. Kd3 {[%clk 0:00:13]}  f4 {[%clk 0:00:16]} 56. Ke2 {[%clk 0:00:09]}  fxg3 {[%clk 0:00:15]} 57. hxg3 {[%clk 0:00:10]}  h3 {[%clk 0:00:12]} 58. Kf2 {[%clk 0:00:10]}  Kd5 {[%clk 0:00:13]} 59. a5 {[%clk 0:00:10]}  Kxe5 {[%clk 0:00:11]} 60. a6 {[%clk 0:00:11]} 1-0


[Site "https://www.chess.com"]

[Event "Titled Tuesday Blitz May 24 Early 2022"]
[White "Vasquez Schroeder, Rodrigo"]
[Black "Dubov, Daniil"]
[WhiteFideId "3400042"]
[BlackFideId "24126055"]
[WhiteElo "2567"]
[BlackElo "2791"]
[Result "1/2-1/2"]
[Round "09"]
[TimeControl "180+1"]
[Date "2022.05.24"]
[WhiteClock "0:00:23"]
[BlackClock "0:00:09"]

1. e4 {[%clk 0:03:00]}  c5 {[%clk 0:02:58]} 2. Nf3 {[%clk 0:02:55]}  g6 {[%clk 0:02:57]} 3. d4 {[%clk 0:02:55]}  cxd4 {[%clk 0:02:56]} 4. Nxd4 {[%clk 0:02:56]}  Bg7 {[%clk 0:02:56]} 5. c4 {[%clk 0:02:56]}  Qb6 {[%clk 0:02:56]} 6. Nb5 {[%clk 0:02:55]}  a6 {[%clk 0:02:51]} 7. Be3 {[%clk 0:02:45]}  Qa5+ {[%clk 0:02:47]} 8. N5c3 {[%clk 0:02:44]}  Nf6 {[%clk 0:02:41]} 9. Nd2 {[%clk 0:02:42]}  O-O {[%clk 0:02:40]} 10. Be2 {[%clk 0:02:40]}  d6 {[%clk 0:02:34]} 11. O-O {[%clk 0:02:39]}  Nc6 {[%clk 0:02:35]} 12. a3 {[%clk 0:02:33]}  Nd7 {[%clk 0:02:24]} 13. Nb3 {[%clk 0:02:27]}  Qd8 {[%clk 0:02:24]} 14. Rc1 {[%clk 0:02:25]}  b6 {[%clk 0:02:18]} 15. Nd4 {[%clk 0:02:19]}  Bb7 {[%clk 0:02:17]} 16. b4 {[%clk 0:02:16]}  Rc8 {[%clk 0:02:14]} 17. f3 {[%clk 0:02:07]}  Nce5 {[%clk 0:02:02]} 18. Na4 {[%clk 0:02:04]}  Rc7 {[%clk 0:02:01]} 19. Nb3 {[%clk 0:01:56]}  Rc8 {[%clk 0:01:43]} 20. Qd2 {[%clk 0:01:52]}  Qc7 {[%clk 0:01:35]} 21. Rc2 {[%clk 0:01:47]}  Rfe8 {[%clk 0:01:25]} 22. Rfc1 {[%clk 0:01:47]}  Qb8 {[%clk 0:01:16]} 23. Bf1 {[%clk 0:01:41]}  Bc6 {[%clk 0:00:56]} 24. Nc3 {[%clk 0:01:35]}  Ba8 {[%clk 0:00:56]} 25. Na4 {[%clk 0:01:15]}  Rc7 {[%clk 0:00:27]} 26. Qf2 {[%clk 0:01:11]}  b5 {[%clk 0:00:19]} 27. cxb5 {[%clk 0:01:11]}  Rxc2 {[%clk 0:00:19]} 28. Rxc2 {[%clk 0:01:06]}  axb5 {[%clk 0:00:20]} 29. Nc3 {[%clk 0:01:06]}  Nc4 {[%clk 0:00:19]} 30. Nxb5 {[%clk 0:01:02]}  Nxe3 {[%clk 0:00:18]} 31. Qxe3 {[%clk 0:01:01]}  Nf6 {[%clk 0:00:15]} 32. Qa7 {[%clk 0:00:56]}  Qd8 {[%clk 0:00:12]} 33. Qc7 {[%clk 0:00:55]}  Nd7 {[%clk 0:00:08]} 34. Qxd8 {[%clk 0:00:54]}  Rxd8 {[%clk 0:00:08]} 35. Na5 {[%clk 0:00:51]}  d5 {[%clk 0:00:09]} 36. exd5 {[%clk 0:00:48]}  Bxd5 {[%clk 0:00:09]} 37. Nc7 {[%clk 0:00:46]}  Bd4+ {[%clk 0:00:08]} 38. Kh1 {[%clk 0:00:46]}  Nf6 {[%clk 0:00:08]} 39. Nxd5 {[%clk 0:00:46]}  Rxd5 {[%clk 0:00:09]} 40. Rd2 {[%clk 0:00:44]}  e6 {[%clk 0:00:05]} 41. Nb3 {[%clk 0:00:43]}  Bc3 {[%clk 0:00:04]} 42. Rxd5 {[%clk 0:00:42]}  Nxd5 {[%clk 0:00:05]} 43. b5 {[%clk 0:00:42]}  Nb6 {[%clk 0:00:04]} 44. g3 {[%clk 0:00:37]}  Bb2 {[%clk 0:00:04]} 45. Kg2 {[%clk 0:00:34]}  Bxa3 {[%clk 0:00:04]} 46. Kf2 {[%clk 0:00:35]}  Kf8 {[%clk 0:00:04]} 47. Ke3 {[%clk 0:00:36]}  Ke7 {[%clk 0:00:05]} 48. Nd2 {[%clk 0:00:33]}  Bc5+ {[%clk 0:00:04]} 49. Kd3 {[%clk 0:00:32]}  Bg1 {[%clk 0:00:05]} 50. h3 {[%clk 0:00:31]}  Nd5 {[%clk 0:00:05]} 51. Ke2 {[%clk 0:00:27]}  Nc3+ {[%clk 0:00:04]} 52. Ke1 {[%clk 0:00:28]}  Nd5 {[%clk 0:00:04]} 53. Bc4 {[%clk 0:00:26]}  Nb6 {[%clk 0:00:04]} 54. Bd3 {[%clk 0:00:26]}  Bc5 {[%clk 0:00:04]} 55. Ne4 {[%clk 0:00:25]}  Bb4+ {[%clk 0:00:04]} 56. Ke2 {[%clk 0:00:26]}  h5 {[%clk 0:00:05]} 57. f4 {[%clk 0:00:25]}  Nd5 {[%clk 0:00:04]} 58. Bc4 {[%clk 0:00:24]}  Nb6 {[%clk 0:00:04]} 59. Kd3 {[%clk 0:00:23]}  Be1 {[%clk 0:00:03]} 60. g4 {[%clk 0:00:23]}  hxg4 {[%clk 0:00:04]} 61. hxg4 {[%clk 0:00:24]}  f5 {[%clk 0:00:04]} 62. gxf5 {[%clk 0:00:23]}  exf5 {[%clk 0:00:04]} 63. Ng5 {[%clk 0:00:20]}  Bg3 {[%clk 0:00:04]} 64. Nh3 {[%clk 0:00:20]}  Kd6 {[%clk 0:00:04]} 65. Bf7 {[%clk 0:00:20]}  Kc5 {[%clk 0:00:04]} 66. Bxg6 {[%clk 0:00:20]}  Nd5 {[%clk 0:00:04]} 67. Bxf5 {[%clk 0:00:19]}  Nxf4+ {[%clk 0:00:04]} 68. Nxf4 {[%clk 0:00:19]}  Bxf4 {[%clk 0:00:05]} 69. Bd7 {[%clk 0:00:19]}  Bc7 {[%clk 0:00:05]} 70. Bc6 {[%clk 0:00:20]}  Bb6 {[%clk 0:00:05]} 71. Ke4 {[%clk 0:00:20]}  Kd6 {[%clk 0:00:05]} 72. Kd3 {[%clk 0:00:21]}  Kc7 {[%clk 0:00:06]} 73. Ke4 {[%clk 0:00:21]}  Ba7 {[%clk 0:00:06]} 74. Kd3 {[%clk 0:00:22]}  Bb6 {[%clk 0:00:07]} 75. Ke4 {[%clk 0:00:22]}  Ba7 {[%clk 0:00:08]} 76. Kd3 {[%clk 0:00:23]}  Bb6 {[%clk 0:00:09]} 1/2-1/2


[Site "https://www.chess.com"]

[Event "Titled Tuesday Blitz May 24 Early 2022"]
[White "Vidit, Santosh Gujrathi"]
[Black "Xu, Yi"]
[WhiteFideId "5029465"]
[BlackFideId "8605564"]
[WhiteElo "2654"]
[BlackElo "2471"]
[Result "1-0"]
[Round "09"]
[TimeControl "180+1"]
[Date "2022.05.24"]
[WhiteClock "0:00:07"]
[BlackClock "0:00:01"]

1. Nf3 {[%clk 0:03:00]}  Nf6 {[%clk 0:02:59]} 2. c4 {[%clk 0:02:59]}  e6 {[%clk 0:02:59]} 3. e3 {[%clk 0:02:53]}  d5 {[%clk 0:02:59]} 4. b3 {[%clk 0:02:53]}  b6 {[%clk 0:02:59]} 5. Bb2 {[%clk 0:02:52]}  Bb7 {[%clk 0:03:00]} 6. Nc3 {[%clk 0:02:50]}  a6 {[%clk 0:03:00]} 7. cxd5 {[%clk 0:02:48]}  exd5 {[%clk 0:02:59]} 8. g3 {[%clk 0:02:48]}  Bd6 {[%clk 0:02:58]} 9. Bg2 {[%clk 0:02:48]}  O-O {[%clk 0:02:58]} 10. O-O {[%clk 0:02:48]}  Nbd7 {[%clk 0:02:58]} 11. Rc1 {[%clk 0:02:47]}  Qe7 {[%clk 0:02:54]} 12. Qc2 {[%clk 0:02:42]}  Rfe8 {[%clk 0:02:48]} 13. d3 {[%clk 0:02:38]}  Rad8 {[%clk 0:02:37]} 14. Nd4 {[%clk 0:02:35]}  g6 {[%clk 0:02:34]} 15. Nf3 {[%clk 0:02:33]}  Ne5 {[%clk 0:02:24]} 16. Nxe5 {[%clk 0:02:28]}  Bxe5 {[%clk 0:02:22]} 17. Ne2 {[%clk 0:02:26]}  Bxb2 {[%clk 0:02:10]} 18. Qxb2 {[%clk 0:02:27]}  Qd6 {[%clk 0:01:52]} 19. Rc2 {[%clk 0:02:22]}  c5 {[%clk 0:01:46]} 20. d4 {[%clk 0:02:22]}  Rc8 {[%clk 0:01:36]} 21. Rfc1 {[%clk 0:02:20]}  cxd4 {[%clk 0:01:34]} 22. Qxd4 {[%clk 0:02:17]}  Rxc2 {[%clk 0:01:24]} 23. Rxc2 {[%clk 0:02:17]}  Rc8 {[%clk 0:01:19]} 24. Rxc8+ {[%clk 0:02:16]}  Bxc8 {[%clk 0:01:19]} 25. Nc3 {[%clk 0:02:00]}  Bb7 {[%clk 0:01:05]} 26. e4 {[%clk 0:01:56]}  Qe6 {[%clk 0:01:02]} 27. e5 {[%clk 0:01:54]}  Ne4 {[%clk 0:01:01]} 28. Nxe4 {[%clk 0:01:07]}  dxe4 {[%clk 0:01:02]} 29. Bxe4 {[%clk 0:01:08]}  Bxe4 {[%clk 0:01:00]} 30. Qxe4 {[%clk 0:01:09]}  Kg7 {[%clk 0:00:56]} 31. h4 {[%clk 0:01:07]}  a5 {[%clk 0:00:51]} 32. Qd4 {[%clk 0:01:06]}  h5 {[%clk 0:00:49]} 33. Kf1 {[%clk 0:01:03]}  Kf8 {[%clk 0:00:39]} 34. Ke2 {[%clk 0:01:01]}  Ke7 {[%clk 0:00:37]} 35. Kd2 {[%clk 0:00:56]}  Qc6 {[%clk 0:00:36]} 36. Qf4 {[%clk 0:00:48]}  Qd5+ {[%clk 0:00:35]} 37. Kc2 {[%clk 0:00:48]}  Qc5+ {[%clk 0:00:34]} 38. Kd3 {[%clk 0:00:44]}  Qb5+ {[%clk 0:00:29]} 39. Ke3 {[%clk 0:00:26]}  Qc5+ {[%clk 0:00:25]} 40. Qd4 {[%clk 0:00:26]}  Qc1+ {[%clk 0:00:19]} 41. Ke4 {[%clk 0:00:20]}  Qc2+ {[%clk 0:00:19]} 42. Kf4 {[%clk 0:00:20]}  Qxa2 {[%clk 0:00:16]} 43. Qxb6 {[%clk 0:00:18]}  Qd2+ {[%clk 0:00:16]} 44. Qe3 {[%clk 0:00:13]}  Qd5 {[%clk 0:00:13]} 45. Kg5 {[%clk 0:00:13]}  Ke6 {[%clk 0:00:09]} 46. Kf4 {[%clk 0:00:05]}  Qb5 {[%clk 0:00:07]} 47. Qc3 {[%clk 0:00:03]}  Qd5 {[%clk 0:00:04]} 48. Qc8+ {[%clk 0:00:03]}  Ke7 {[%clk 0:00:03]} 49. Qc7+ {[%clk 0:00:04]}  Ke6 {[%clk 0:00:01]} 50. Qb6+ {[%clk 0:00:04]}  Ke7 {[%clk 0:00:02]} 51. Qf6+ {[%clk 0:00:03]}  Ke8 {[%clk 0:00:02]} 52. Kg5 {[%clk 0:00:03]}  Qd2+ {[%clk 0:00:02]} 53. f4 {[%clk 0:00:02]}  Qc3 {[%clk 0:00:01]} 54. Kh6 {[%clk 0:00:03]}  Qxg3 {[%clk 0:00:02]} 55. Kg7 {[%clk 0:00:03]}  Qxb3 {[%clk 0:00:02]} 56. Qc6+ {[%clk 0:00:04]}  Ke7 {[%clk 0:00:02]} 57. Qc7+ {[%clk 0:00:05]}  Ke8 {[%clk 0:00:02]} 58. Qc8+ {[%clk 0:00:05]}  Ke7 {[%clk 0:00:03]} 59. Qc7+ {[%clk 0:00:06]}  Ke8 {[%clk 0:00:03]} 60. Qxa5 {[%clk 0:00:06]}  Qe6 {[%clk 0:00:03]} 61. Qa8+ {[%clk 0:00:06]}  Kd7 {[%clk 0:00:04]} 62. Qb7+ {[%clk 0:00:07]}  Ke8 {[%clk 0:00:04]} 63. Qb8+ {[%clk 0:00:07]}  Kd7 {[%clk 0:00:04]} 64. Qd6+ {[%clk 0:00:05]}  Qxd6 {[%clk 0:00:03]} 65. exd6 {[%clk 0:00:06]}  Ke6 {[%clk 0:00:02]} 66. d7 {[%clk 0:00:06]}  Kxd7 {[%clk 0:00:01]} 67. Kxf7 {[%clk 0:00:07]} 1-0


[Site "https://www.chess.com"]

[Event "Titled Tuesday Blitz May 24 Early 2022"]
[White "Vidonyak, Roman"]
[Black "Mekhitarian, Krikor Sevag"]
[WhiteFideId "14100622"]
[BlackFideId "2107660"]
[WhiteElo "2399"]
[BlackElo "2598"]
[Result "0-1"]
[Round "09"]
[TimeControl "180+1"]
[Date "2022.05.25"]
[WhiteClock "0:00:03"]
[BlackClock "0:00:41"]

1. d4 {[%clk 0:03:00]}  d5 {[%clk 0:02:59]} 2. c4 {[%clk 0:03:01]}  dxc4 {[%clk 0:03:00]} 3. Nf3 {[%clk 0:03:00]}  Nf6 {[%clk 0:03:00]} 4. e3 {[%clk 0:03:00]}  e6 {[%clk 0:03:01]} 5. Bxc4 {[%clk 0:03:00]}  c5 {[%clk 0:03:02]} 6. O-O {[%clk 0:02:59]}  a6 {[%clk 0:03:03]} 7. a4 {[%clk 0:02:57]}  Nc6 {[%clk 0:03:02]} 8. Qe2 {[%clk 0:02:57]}  cxd4 {[%clk 0:03:02]} 9. Rd1 {[%clk 0:02:57]}  Be7 {[%clk 0:03:01]} 10. exd4 {[%clk 0:02:57]}  Nb4 {[%clk 0:03:00]} 11. Nc3 {[%clk 0:02:57]}  O-O {[%clk 0:02:59]} 12. Ne5 {[%clk 0:02:58]}  Nbd5 {[%clk 0:02:59]} 13. Nxd5 {[%clk 0:02:54]}  Nxd5 {[%clk 0:02:59]} 14. Qe4 {[%clk 0:02:53]}  Bf6 {[%clk 0:02:30]} 15. Bxd5 {[%clk 0:02:30]}  exd5 {[%clk 0:02:30]} 16. Qf3 {[%clk 0:02:26]}  Be7 {[%clk 0:02:17]} 17. Bf4 {[%clk 0:02:16]}  Be6 {[%clk 0:02:15]} 18. Rac1 {[%clk 0:02:02]}  Qb6 {[%clk 0:02:12]} 19. b3 {[%clk 0:01:52]}  Rac8 {[%clk 0:02:12]} 20. Qd3 {[%clk 0:01:46]}  Rfd8 {[%clk 0:02:02]} 21. h3 {[%clk 0:01:41]}  Bf8 {[%clk 0:01:56]} 22. Rxc8 {[%clk 0:01:28]}  Rxc8 {[%clk 0:01:57]} 23. Rc1 {[%clk 0:01:27]}  Rxc1+ {[%clk 0:01:54]} 24. Bxc1 {[%clk 0:01:28]}  f6 {[%clk 0:01:54]} 25. Nf3 {[%clk 0:01:25]}  Qc6 {[%clk 0:01:52]} 26. Qd1 {[%clk 0:01:20]}  Bf5 {[%clk 0:01:50]} 27. Qe1 {[%clk 0:00:58]}  Be4 {[%clk 0:01:35]} 28. Nd2 {[%clk 0:00:48]}  Bb4 {[%clk 0:01:34]} 29. f3 {[%clk 0:00:32]}  Bg6 {[%clk 0:01:25]} 30. Qf1 {[%clk 0:00:16]}  Qc3 {[%clk 0:01:17]} 31. Qe1 {[%clk 0:00:14]}  Qxd4+ {[%clk 0:01:16]} 32. Kh1 {[%clk 0:00:14]}  Qe5 {[%clk 0:01:10]} 33. Qf2 {[%clk 0:00:11]}  Bd6 {[%clk 0:01:02]} 34. Nf1 {[%clk 0:00:07]}  Bd3 {[%clk 0:00:58]} 35. f4 {[%clk 0:00:07]}  Qe2 {[%clk 0:00:54]} 36. Qxe2 {[%clk 0:00:06]}  Bxe2 {[%clk 0:00:55]} 37. Ng3 {[%clk 0:00:07]}  Bd1 {[%clk 0:00:54]} 38. Nf5 {[%clk 0:00:07]}  Bc5 {[%clk 0:00:53]} 39. Be3 {[%clk 0:00:01]}  Bxe3 {[%clk 0:00:50]} 40. Nxe3 {[%clk 0:00:02]}  Bxb3 {[%clk 0:00:50]} 41. a5 {[%clk 0:00:03]}  d4 {[%clk 0:00:41]} 0-1


[Site "https://www.chess.com"]

[Event "Titled Tuesday Blitz May 24 Early 2022"]
[White "Yaksin, Oleg"]
[Black "Nogerbek, Kazybek"]
[WhiteFideId "24105880"]
[BlackFideId "13710427"]
[WhiteElo "2256"]
[BlackElo "2441"]
[Result "0-1"]
[Round "09"]
[TimeControl "180+1"]
[Date "2022.05.24"]
[WhiteClock "0:00:08"]
[BlackClock "0:01:43"]

1. d4 {[%clk 0:02:59]}  Nf6 {[%clk 0:02:58]} 2. c4 {[%clk 0:02:59]}  Nc6 {[%clk 0:02:57]} 3. Nf3 {[%clk 0:02:53]}  e6 {[%clk 0:02:56]} 4. g3 {[%clk 0:02:51]}  Bb4+ {[%clk 0:02:50]} 5. Bd2 {[%clk 0:02:51]}  Bxd2+ {[%clk 0:02:50]} 6. Qxd2 {[%clk 0:02:52]}  O-O {[%clk 0:02:51]} 7. Nc3 {[%clk 0:02:52]}  d6 {[%clk 0:02:52]} 8. Bg2 {[%clk 0:02:51]}  e5 {[%clk 0:02:52]} 9. O-O {[%clk 0:02:49]}  Bg4 {[%clk 0:02:52]} 10. d5 {[%clk 0:02:46]}  Bxf3 {[%clk 0:02:51]} 11. exf3 {[%clk 0:02:42]}  Nd4 {[%clk 0:02:49]} 12. f4 {[%clk 0:02:38]}  Nd7 {[%clk 0:02:47]} 13. Rfe1 {[%clk 0:02:31]}  Re8 {[%clk 0:02:42]} 14. fxe5 {[%clk 0:02:04]}  dxe5 {[%clk 0:02:43]} 15. f4 {[%clk 0:02:04]}  c5 {[%clk 0:02:32]} 16. dxc6 {[%clk 0:02:00]}  bxc6 {[%clk 0:02:33]} 17. fxe5 {[%clk 0:01:51]}  Nxe5 {[%clk 0:02:33]} 18. Qf4 {[%clk 0:01:30]}  Nc2 {[%clk 0:02:21]} 19. Rxe5 {[%clk 0:01:10]}  Rxe5 {[%clk 0:02:18]} 20. Qxe5 {[%clk 0:01:10]}  Nxa1 {[%clk 0:02:18]} 21. c5 {[%clk 0:00:55]}  Rc8 {[%clk 0:02:14]} 22. Be4 {[%clk 0:00:51]}  g6 {[%clk 0:02:06]} 23. Ne2 {[%clk 0:00:35]}  Qd2 {[%clk 0:02:04]} 24. Kf2 {[%clk 0:00:29]}  Nc2 {[%clk 0:02:02]} 25. Bxc6 {[%clk 0:00:09]}  Rxc6 {[%clk 0:01:54]} 26. Qe8+ {[%clk 0:00:09]}  Kg7 {[%clk 0:01:55]} 27. Qxc6 {[%clk 0:00:10]}  Qe3+ {[%clk 0:01:55]} 28. Kf1 {[%clk 0:00:09]}  Qxe2+ {[%clk 0:01:45]} 29. Kxe2 {[%clk 0:00:10]}  Nd4+ {[%clk 0:01:46]} 30. Kd3 {[%clk 0:00:10]}  Nxc6 {[%clk 0:01:47]} 31. Kc4 {[%clk 0:00:10]}  f5 {[%clk 0:01:44]} 32. b4 {[%clk 0:00:11]}  g5 {[%clk 0:01:42]} 33. b5 {[%clk 0:00:11]}  Ne7 {[%clk 0:01:42]} 34. a4 {[%clk 0:00:09]}  Kf6 {[%clk 0:01:42]} 35. a5 {[%clk 0:00:10]}  Ke6 {[%clk 0:01:43]} 36. b6 {[%clk 0:00:09]}  a6 {[%clk 0:01:43]} 37. b7 {[%clk 0:00:08]}  Nc6 {[%clk 0:01:44]} 38. Kd3 {[%clk 0:00:08]}  Kd5 {[%clk 0:01:42]} 39. Ke3 {[%clk 0:00:07]}  Kxc5 {[%clk 0:01:43]} 40. b8=Q {[%clk 0:00:08]}  Nxb8 {[%clk 0:01:43]} 0-1


[Site "https://www.chess.com"]

[Event "Titled Tuesday Blitz May 24 Early 2022"]
[White "Zhigalko, Sergei"]
[Black "Paravyan, David"]
[WhiteFideId "13502956"]
[BlackFideId "4194985"]
[WhiteElo "2662"]
[BlackElo "2569"]
[Result "0-1"]
[Round "09"]
[TimeControl "180+1"]
[Date "2022.05.24"]
[WhiteClock "0:00:01"]
[BlackClock "0:00:07"]

1. e4 {[%clk 0:03:00]}  e5 {[%clk 0:02:58]} 2. Nf3 {[%clk 0:03:00]}  Nf6 {[%clk 0:02:59]} 3. Nxe5 {[%clk 0:02:59]}  d6 {[%clk 0:02:59]} 4. Nf3 {[%clk 0:03:00]}  Nxe4 {[%clk 0:02:59]} 5. Nc3 {[%clk 0:03:01]}  Nxc3 {[%clk 0:02:57]} 6. dxc3 {[%clk 0:03:02]}  Be7 {[%clk 0:02:56]} 7. Be3 {[%clk 0:03:02]}  O-O {[%clk 0:02:56]} 8. Qd2 {[%clk 0:03:03]}  Bg4 {[%clk 0:02:57]} 9. O-O-O {[%clk 0:03:02]}  Nd7 {[%clk 0:02:55]} 10. Be2 {[%clk 0:02:58]}  c6 {[%clk 0:02:49]} 11. h3 {[%clk 0:02:58]}  Bxf3 {[%clk 0:02:49]} 12. Bxf3 {[%clk 0:02:58]}  d5 {[%clk 0:02:46]} 13. c4 {[%clk 0:02:51]}  Ne5 {[%clk 0:02:44]} 14. cxd5 {[%clk 0:02:48]}  Nc4 {[%clk 0:02:35]} 15. Qd3 {[%clk 0:02:10]}  Nxe3 {[%clk 0:02:35]} 16. fxe3 {[%clk 0:02:10]}  Qa5 {[%clk 0:02:19]} 17. Qb3 {[%clk 0:02:05]}  Bf6 {[%clk 0:02:01]} 18. Kb1 {[%clk 0:02:01]}  Qc5 {[%clk 0:01:47]} 19. Rd3 {[%clk 0:01:44]}  a5 {[%clk 0:01:47]} 20. a3 {[%clk 0:01:19]}  Ra6 {[%clk 0:01:45]} 21. c3 {[%clk 0:01:01]}  Rb6 {[%clk 0:01:45]} 22. Qa2 {[%clk 0:00:50]}  Re8 {[%clk 0:01:40]} 23. Rhd1 {[%clk 0:00:32]}  g6 {[%clk 0:01:37]} 24. dxc6 {[%clk 0:00:27]}  bxc6 {[%clk 0:01:38]} 25. Rd7 {[%clk 0:00:27]}  Re7 {[%clk 0:01:29]} 26. Rxe7 {[%clk 0:00:23]}  Qxe7 {[%clk 0:01:28]} 27. Ka1 {[%clk 0:00:12]}  Qxe3 {[%clk 0:01:16]} 28. Qc4 {[%clk 0:00:10]}  Kg7 {[%clk 0:01:14]} 29. Ka2 {[%clk 0:00:04]}  Qf2 {[%clk 0:01:15]} 30. Rb1 {[%clk 0:00:04]}  Qc2 {[%clk 0:01:12]} 31. Be4 {[%clk 0:00:03]}  Qd2 {[%clk 0:01:06]} 32. Bf3 {[%clk 0:00:04]}  h5 {[%clk 0:01:05]} 33. Qc5 {[%clk 0:00:03]}  Rb8 {[%clk 0:00:49]} 34. Qxc6 {[%clk 0:00:04]}  Qc2 {[%clk 0:00:49]} 35. Qc4 {[%clk 0:00:03]}  a4 {[%clk 0:00:23]} 36. Be4 {[%clk 0:00:03]}  Qd2 {[%clk 0:00:24]} 37. Bd5 {[%clk 0:00:03]}  Rb3 {[%clk 0:00:23]} 38. Qc5 {[%clk 0:00:02]}  Rxc3 {[%clk 0:00:19]} 39. Qb5 {[%clk 0:00:01]}  Rc2 {[%clk 0:00:13]} 40. Be4 {[%clk 0:00:01]}  Rc8 {[%clk 0:00:07]} 41. Qxa4 {[%clk 0:00:01]}  Rb8 {[%clk 0:00:07]} 0-1


[Site "https://www.chess.com"]

[Event "Titled Tuesday Blitz May 24 Early 2022"]
[White "Ajay Krishna, S"]
[Black "Tasev, Dejan"]
[WhiteFideId "5096430"]
[BlackFideId "936618"]
[WhiteElo "2247"]
[BlackElo "2253"]
[Result "0-1"]
[Round "10"]
[TimeControl "180+1"]
[Date "2022.05.25"]
[WhiteClock "0:00:06"]
[BlackClock "0:00:22"]

1. d4 {[%clk 0:02:59]}  Nf6 {[%clk 0:02:59]} 2. c4 {[%clk 0:02:59]}  g6 {[%clk 0:03:00]} 3. Nf3 {[%clk 0:02:58]}  Bg7 {[%clk 0:03:00]} 4. g3 {[%clk 0:02:58]}  O-O {[%clk 0:03:00]} 5. Bg2 {[%clk 0:02:58]}  b6 {[%clk 0:03:01]} 6. O-O {[%clk 0:02:56]}  Bb7 {[%clk 0:03:01]} 7. d5 {[%clk 0:02:56]}  e6 {[%clk 0:03:01]} 8. Nc3 {[%clk 0:02:55]}  exd5 {[%clk 0:03:01]} 9. cxd5 {[%clk 0:02:55]}  d6 {[%clk 0:03:02]} 10. e4 {[%clk 0:02:53]}  Re8 {[%clk 0:03:02]} 11. Nd4 {[%clk 0:02:52]}  a5 {[%clk 0:03:01]} 12. Be3 {[%clk 0:02:28]}  Na6 {[%clk 0:02:59]} 13. a3 {[%clk 0:02:26]}  Nc5 {[%clk 0:02:59]} 14. Qc2 {[%clk 0:02:06]}  a4 {[%clk 0:02:48]} 15. h3 {[%clk 0:02:05]}  Qd7 {[%clk 0:02:43]} 16. Rfe1 {[%clk 0:01:56]}  Re7 {[%clk 0:02:39]} 17. Bf1 {[%clk 0:01:41]}  Nfxe4 {[%clk 0:02:30]} 18. Nxe4 {[%clk 0:01:39]}  Rxe4 {[%clk 0:02:22]} 19. Nc6 {[%clk 0:01:31]}  Bxc6 {[%clk 0:02:12]} 20. dxc6 {[%clk 0:01:26]}  Qe7 {[%clk 0:02:01]} 21. Bg2 {[%clk 0:01:24]}  Re5 {[%clk 0:01:55]} 22. Bd2 {[%clk 0:01:09]}  Nb3 {[%clk 0:01:35]} 23. Rxe5 {[%clk 0:01:04]}  Bxe5 {[%clk 0:01:30]} 24. Rd1 {[%clk 0:01:02]}  Nxd2 {[%clk 0:01:22]} 25. Rxd2 {[%clk 0:00:59]}  Qf6 {[%clk 0:01:18]} 26. Re2 {[%clk 0:00:58]}  Kg7 {[%clk 0:01:12]} 27. f4 {[%clk 0:00:57]}  Bd4+ {[%clk 0:01:12]} 28. Kh2 {[%clk 0:00:57]}  h5 {[%clk 0:01:06]} 29. h4 {[%clk 0:00:48]}  Ra5 {[%clk 0:01:00]} 30. Be4 {[%clk 0:00:32]}  Rc5 {[%clk 0:00:51]} 31. Qxa4 {[%clk 0:00:30]}  Bxb2 {[%clk 0:00:47]} 32. Qa7 {[%clk 0:00:28]}  Rc1 {[%clk 0:00:41]} 33. Qxc7 {[%clk 0:00:25]}  Qd4 {[%clk 0:00:40]} 34. Bg2 {[%clk 0:00:16]}  Qg1+ {[%clk 0:00:28]} 35. Kh3 {[%clk 0:00:16]}  Bf6 {[%clk 0:00:26]} 36. Qxd6 {[%clk 0:00:15]}  Rc3 {[%clk 0:00:23]} 37. Qd5 {[%clk 0:00:10]}  Bxh4 {[%clk 0:00:23]} 38. Kxh4 {[%clk 0:00:10]}  Qh2+ {[%clk 0:00:23]} 39. Bh3 {[%clk 0:00:06]}  Qxg3# {[%clk 0:00:22]} 0-1


[Site "https://www.chess.com"]